[Event "Fast Chess"]
[Site "ChessKid.com"]
[Date "2020.04.11"]
[Round "3"]
[White "Dai, Lana"]
[Black "Li, Tobias"]
[Result "1/2-1/2"]
[ECO "C50"]
[WhiteElo "1264"]
[BlackElo "1253"]
[PlyCount "120"]
[EventDate "2020.??.??"]
[TimeControl "300+10"]
[WhiteClock "0:00:02"]

1. e4 {[%emt 0:00:09]} e5 {[%emt 0:00:13]} 2. Nc3 {[%emt 0:00:14]} Nf6 {
[%emt 0:00:16]} 3. Nf3 {[%emt 0:00:16]} Nc6 {[%emt 0:00:12]} 4. Bc4 {[%emt 0:
00:17]} Bc5 {[%emt 0:00:10]} 5. d3 {[%emt 0:00:31]} d6 {[%emt 0:00:13]} 6. h3 {
[%emt 0:00:12]} h6 {[%emt 0:00:13]} 7. a3 {[%emt 0:00:13]} a6 {[%emt 0:00:14]}
8. O-O {[%emt 0:00:17]} b5 {[%emt 0:00:15]} 9. Bd5 {[%emt 0:00:15]} Bb7 {
[%emt 0:00:20]} 10. b4 {[%emt 0:00:31]} Bd4 {[%emt 0:00:15]} 11. Nxd4 {[%emt 0:
00:16]} exd4 {[%emt 0:00:12]} 12. Ne2 {[%emt 0:00:25]} Rb8 {[%emt 0:00:13]} 13.
Bb2 {[%emt 0:00:23]} Ne7 {[%emt 0:00:14]} 14. Bxb7 {[%emt 0:00:15]} Rxb7 {
[%emt 0:00:13]} 15. Bxd4 {[%emt 0:00:11]} Nc6 {[%emt 0:00:45]} 16. a4 {[%emt 0:
00:31]} Nxd4 {[%emt 0:00:16]} 17. Nxd4 {[%emt 0:00:12]} bxa4 {[%emt 0:00:15]}
18. Rxa4 {[%emt 0:00:12]} O-O {[%emt 0:00:13]} 19. Rxa6 {[%emt 0:00:23]} Rxb4 {
[%emt 0:00:11]} 20. Nc6 {[%emt 0:00:13]} Qc8 {[%emt 0:00:21]} 21. Nxb4 {
[%emt 0:00:12]} c5 {[%emt 0:00:13]} 22. Rc6 {[%emt 0:00:16]} Qb7 {[%emt 0:00:
17]} 23. Rxd6 {[%emt 0:00:38]} cxb4 {[%emt 0:00:23]} 24. e5 {[%emt 0:00:29]}
Ne8 {[%emt 0:00:21]} 25. Rd8 {[%emt 0:00:19]} Qe7 {[%emt 0:00:35]} 26. Rd5 {
[%emt 0:00:15]} Qe6 {[%emt 0:00:19]} 27. Qf3 {[%emt 0:00:12]} Nc7 {[%emt 0:00:
41]} 28. Rc5 {[%emt 0:00:21]} Na6 {[%emt 0:00:16]} 29. Rc6 {[%emt 0:00:21]} Qa2
{[%emt 0:00:34]} 30. Qg4 {[%emt 0:00:26]} Nb8 {[%emt 0:00:16]} 31. Rc4 {
[%emt 0:00:15]} b3 {[%emt 0:00:15]} 32. cxb3 {[%emt 0:00:13]} Qxb3 {[%emt 0:00:
13]} 33. e6 {[%emt 0:00:12]} Qxd3 {[%emt 0:00:16]} 34. exf7+ {[%emt 0:00:14]}
Rxf7 {[%emt 0:00:11]} 35. Rc8+ {[%emt 0:00:12]} Rf8 {[%emt 0:00:12]} 36. Rxf8+
{[%emt 0:00:12]} Kxf8 {[%emt 0:00:11]} 37. Qc8+ {[%emt 0:00:11]} Kf7 {[%emt 0:
00:13]} 38. Qxb8 {[%emt 0:00:11]} Qd7 {[%emt 0:00:12]} 39. Qf4+ {[%emt 0:00:12]
} Kg8 {[%emt 0:00:12]} 40. Re1 {[%emt 0:00:14]} Qf7 {[%emt 0:00:13]} 41. Qxf7+
{[%emt 0:00:14]} Kxf7 {[%emt 0:00:11]} 42. Ra1 {[%emt 0:00:11]} Kg6 {[%emt 0:
00:11]} 43. f4 {[%emt 0:00:11]} Kh7 {[%emt 0:00:10]} 44. g4 {[%emt 0:00:11]} g6
{[%emt 0:00:11]} 45. g5 {[%emt 0:00:10]} hxg5 {[%emt 0:00:11]} 46. fxg5 {
[%emt 0:00:10]} Kg7 {[%emt 0:00:10]} 47. h4 {[%emt 0:00:10]} Kf7 {[%emt 0:00:
11]} 48. Ra7+ {[%emt 0:00:10]} Kf8 {[%emt 0:00:12]} 49. h5 {[%emt 0:00:12]}
gxh5 {[%emt 0:00:12]} 50. g6 {[%emt 0:00:10]} Kg8 {[%emt 0:00:12]} 51. g7 {
[%emt 0:00:10]} h4 {[%emt 0:00:12]} 52. Re7 {[%emt 0:00:10]} h3 {[%emt 0:00:14]
} 53. Rd7 {[%emt 0:00:10]} h2+ {[%emt 0:00:13]} 54. Kxh2 {[%emt 0:00:10]} Kh7 {
[%emt 0:00:12]} 55. Rf7 {[%emt 0:00:10]} Kg6 {[%emt 0:00:11]} 56. Re7 {[%emt 0:
00:10]} Kf6 {[%emt 0:00:12]} 57. Rd7 {[%emt 0:00:10]} Ke6 {[%emt 0:00:11]} 58.
Rc7 {[%emt 0:00:10]} Kd6 {[%emt 0:00:10]} 59. Rb7 {[%emt 0:00:10]} Kc6 {
[%emt 0:00:10]} 60. Re7 {[%emt 0:00:10]} Kd6 {[%emt 0:00:10] Game drawn -
timeout vs insufficient material} 1/2-1/2

[Event "Fast Chess"]
[Site "ChessKid.com"]
[Date "2020.04.11"]
[Round "3"]
[White "Li, Patrick"]
[Black "Sasse, Gabriel"]
[Result "0-1"]
[ECO "C55"]
[WhiteElo "1006"]
[BlackElo "1235"]
[PlyCount "48"]
[EventDate "2020.??.??"]
[TimeControl "300+10"]
[WhiteClock "0:04:07"]
[BlackClock "0:02:43"]

1. e4 {[%emt 0:00:12]} e5 {[%emt 0:00:10]} 2. Nf3 {[%emt 0:00:19]} Nc6 {
[%emt 0:00:10]} 3. Nc3 {[%emt 0:00:14]} Nf6 {[%emt 0:00:11]} 4. Bc4 {[%emt 0:
00:12]} h6 {[%emt 0:00:11]} 5. O-O {[%emt 0:00:12]} Bc5 {[%emt 0:00:12]} 6. h3
{[%emt 0:00:09]} O-O {[%emt 0:00:12]} 7. Bb5 {[%emt 0:00:17]} Ne8 {[%emt 0:00:
10]} 8. Bxc6 {[%emt 0:00:23]} dxc6 {[%emt 0:00:12]} 9. Nxe5 {[%emt 0:00:21]}
Qg5 {[%emt 0:00:15]} 10. d4 {[%emt 0:00:15]} Bb6 {[%emt 0:00:15]} 11. Bxg5 {
[%emt 0:00:14]} hxg5 {[%emt 0:00:12]} 12. d5 {[%emt 0:00:24]} cxd5 {[%emt 0:00:
11]} 13. Nxd5 {[%emt 0:00:16]} Nf6 {[%emt 0:00:12]} 14. Nxf6+ {[%emt 0:00:17]}
gxf6 {[%emt 0:00:10]} 15. Ng4 {[%emt 0:00:15]} Bxg4 {[%emt 0:00:11]} 16. hxg4 {
[%emt 0:00:13]} Rad8 {[%emt 0:00:10]} 17. Qf3 {[%emt 0:00:14]} Bd4 {[%emt 0:00:
15]} 18. Rfd1 {[%emt 0:00:14]} Bxb2 {[%emt 0:00:14]} 19. Rxd8 {[%emt 0:00:13]}
Rxd8 {[%emt 0:00:10]} 20. Rb1 {[%emt 0:00:16]} Bd4 {[%emt 0:00:16]} 21. Rxb7 {
[%emt 0:00:10]} a6 {[%emt 0:00:12]} 22. Rxc7 {[%emt 0:00:23]} Be5 {[%emt 0:00:
15]} 23. Re7 {[%emt 0:00:15]} Rb8 {[%emt 0:00:16]} 24. Qf5 {[%emt 0:00:19]}
Rb1# {[%emt 0:00:12] LimeFarActor won by checkmate} 0-1

[Event "Fast Chess"]
[Site "ChessKid.com"]
[Date "2020.04.12"]
[Round "1"]
[White "Sasse, Gabriel"]
[Black "Georgiev, Maximilian"]
[Result "0-1"]
[ECO "C50"]
[WhiteElo "1234"]
[BlackElo "1337"]
[PlyCount "128"]
[EventDate "2020.??.??"]
[TimeControl "180"]
[WhiteClock "0:00:06"]
[BlackClock "0:00:01"]

1. e4 {[%emt 0:00:00]} e5 {[%emt 0:00:01]} 2. Nf3 {[%emt 0:00:01]} Nc6 {
[%emt 0:00:01]} 3. Bc4 {[%emt 0:00:01]} h6 {[%emt 0:00:01]} 4. h3 {[%emt 0:00:
02]} Nf6 {[%emt 0:00:01]} 5. Nc3 {[%emt 0:00:01]} Bc5 {[%emt 0:00:02]} 6. O-O {
[%emt 0:00:01]} O-O {[%emt 0:00:03]} 7. d3 {[%emt 0:00:01]} a6 {[%emt 0:00:02]}
8. Ne1 {[%emt 0:00:01]} Bd4 {[%emt 0:00:03]} 9. Qf3 {[%emt 0:00:03]} Bxc3 {
[%emt 0:00:03]} 10. bxc3 {[%emt 0:00:00]} d6 {[%emt 0:00:02]} 11. Qg3 {[%emt 0:
00:01]} Nh5 {[%emt 0:00:06]} 12. Qf3 {[%emt 0:00:09]} g6 {[%emt 0:00:07]} 13.
Qe3 {[%emt 0:00:04]} Qg5 {[%emt 0:00:06]} 14. Qxg5 {[%emt 0:00:03]} hxg5 {
[%emt 0:00:01]} 15. Bxg5 {[%emt 0:00:01]} Be6 {[%emt 0:00:02]} 16. Bxe6 {
[%emt 0:00:01]} fxe6 {[%emt 0:00:00]} 17. Bd2 {[%emt 0:00:03]} d5 {[%emt 0:00:
03]} 18. exd5 {[%emt 0:00:02]} exd5 {[%emt 0:00:00]} 19. c4 {[%emt 0:00:04]}
dxc4 {[%emt 0:00:02]} 20. dxc4 {[%emt 0:00:01]} b5 {[%emt 0:00:02]} 21. cxb5 {
[%emt 0:00:01]} axb5 {[%emt 0:00:00]} 22. Nf3 {[%emt 0:00:02]} Ra4 {[%emt 0:00:
04]} 23. Rab1 {[%emt 0:00:08]} Rb8 {[%emt 0:00:05]} 24. Rbe1 {[%emt 0:00:08]}
Nd4 {[%emt 0:00:04]} 25. Nxd4 {[%emt 0:00:02]} exd4 {[%emt 0:00:02]} 26. Re7 {
[%emt 0:00:05]} Rb7 {[%emt 0:00:02]} 27. Re6 {[%emt 0:00:08]} Rxa2 {[%emt 0:00:
03]} 28. Rxg6+ {[%emt 0:00:03]} Kf7 {[%emt 0:00:00]} 29. Rh6 {[%emt 0:00:02]}
Ng7 {[%emt 0:00:04]} 30. Rh4 {[%emt 0:00:10]} Rxc2 {[%emt 0:00:02]} 31. Rf4+ {
[%emt 0:00:02]} Kg8 {[%emt 0:00:02]} 32. Bb4 {[%emt 0:00:05]} Kh7 {[%emt 0:00:
07]} 33. Rxd4 {[%emt 0:00:02]} Rb2 {[%emt 0:00:04]} 34. Bc3 {[%emt 0:00:01]}
Rb3 {[%emt 0:00:02]} 35. Rh4+ {[%emt 0:00:02]} Kg8 {[%emt 0:00:04]} 36. Bxg7 {
[%emt 0:00:01]} Kxg7 {[%emt 0:00:02]} 37. Rg4+ {[%emt 0:00:02]} Kh6 {[%emt 0:
00:02]} 38. Re1 {[%emt 0:00:01]} Rb6 {[%emt 0:00:04]} 39. Re5 {[%emt 0:00:01]}
Rb1+ {[%emt 0:00:05]} 40. Kh2 {[%emt 0:00:02]} b4 {[%emt 0:00:02]} 41. Rh4+ {
[%emt 0:00:04]} Kg6 {[%emt 0:00:02]} 42. Rhh5 {[%emt 0:00:02]} Rf1 {[%emt 0:00:
07]} 43. Reg5+ {[%emt 0:00:08]} Kf6 {[%emt 0:00:03]} 44. Rg8 {[%emt 0:00:09]}
Rxf2 {[%emt 0:00:08]} 45. Rh6+ {[%emt 0:00:02]} Kf7 {[%emt 0:00:02]} 46. Rxb6 {
[%emt 0:00:03]} cxb6 {[%emt 0:00:01]} 47. Rb8 {[%emt 0:00:01]} Rf6 {[%emt 0:00:
06]} 48. g4 {[%emt 0:00:04]} b3 {[%emt 0:00:03]} 49. Rd8 {[%emt 0:00:04]} b2 {
[%emt 0:00:02]} 50. Rd1 {[%emt 0:00:02]} Rf4 {[%emt 0:00:04]} 51. Rb1 {[%emt 0:
00:02]} Rb4 {[%emt 0:00:01]} 52. Kg3 {[%emt 0:00:02]} Kg6 {[%emt 0:00:03]} 53.
Kf3 {[%emt 0:00:01]} Kg5 {[%emt 0:00:02]} 54. Kg3 {[%emt 0:00:01]} Rb3+ {
[%emt 0:00:03]} 55. Kh2 {[%emt 0:00:03]} Kh4 {[%emt 0:00:03]} 56. Rd1 {[%emt 0:
00:07]} b1=Q {[%emt 0:00:03]} 57. Rxb1 {[%emt 0:00:04]} Rxb1 {[%emt 0:00:01]}
58. g5 {[%emt 0:00:03]} Rb5 {[%emt 0:00:04]} 59. Kg2 {[%emt 0:00:03]} Rxg5+ {
[%emt 0:00:02]} 60. Kh2 {[%emt 0:00:01]} b5 {[%emt 0:00:02]} 61. Kh1 {[%emt 0:
00:02]} b4 {[%emt 0:00:01]} 62. Kh2 {[%emt 0:00:01]} b3 {[%emt 0:00:01]} 63.
Kh1 {[%emt 0:00:01]} b2 {[%emt 0:00:01]} 64. Kh2 {[%emt 0:00:01]} Rc5 {[%emt 0:
00:03] TallSnazzyBall won on time} 0-1

[Event "Fast Chess"]
[Site "ChessKid.com"]
[Date "2020.04.12"]
[Round "1"]
[White "Li, Tobias"]
[Black "Li, Patrick"]
[Result "1-0"]
[ECO "C50"]
[WhiteElo "1261"]
[BlackElo "997"]
[PlyCount "59"]
[EventDate "2020.??.??"]
[TimeControl "180"]
[WhiteClock "0:00:04"]
[BlackClock "0:01:00"]

1. e4 {[%emt 0:00:00]} e5 {[%emt 0:00:02]} 2. Nf3 {[%emt 0:00:01]} Nc6 {
[%emt 0:00:04]} 3. Nc3 {[%emt 0:00:00]} Nf6 {[%emt 0:00:04]} 4. Bc4 {[%emt 0:
00:00]} h6 {[%emt 0:00:06]} 5. O-O {[%emt 0:00:02]} Bc5 {[%emt 0:00:03]} 6. h3
{[%emt 0:00:02]} d6 {[%emt 0:00:05]} 7. d3 {[%emt 0:00:01]} Bb4 {[%emt 0:00:02]
} 8. a3 {[%emt 0:00:05]} Bxc3 {[%emt 0:00:01]} 9. bxc3 {[%emt 0:00:03]} O-O {
[%emt 0:00:04]} 10. Re1 {[%emt 0:00:03]} Na5 {[%emt 0:00:09]} 11. Bb3 {[%emt 0:
00:02]} Nxb3 {[%emt 0:00:03]} 12. cxb3 {[%emt 0:00:01]} a6 {[%emt 0:00:14]} 13.
b4 {[%emt 0:00:02]} Be6 {[%emt 0:00:04]} 14. c4 {[%emt 0:00:05]} b5 {[%emt 0:
00:05]} 15. cxb5 {[%emt 0:00:11]} axb5 {[%emt 0:00:03]} 16. Be3 {[%emt 0:00:04]
} Qd7 {[%emt 0:00:13]} 17. Qd2 {[%emt 0:00:04]} Bb3 {[%emt 0:00:03]} 18. Rab1 {
[%emt 0:00:05]} Qe6 {[%emt 0:00:07]} 19. Qc3 {[%emt 0:00:10]} Ba4 {[%emt 0:00:
07]} 20. Qxc7 {[%emt 0:00:04]} Ne8 {[%emt 0:00:10]} 21. Qc3 {[%emt 0:00:07]}
Qa2 {[%emt 0:00:06]} 22. Qb2 {[%emt 0:00:12]} Qe6 {[%emt 0:00:06]} 23. Qc3 {
[%emt 0:00:05]} Qg6 {[%emt 0:00:18]} 24. Bd2 {[%emt 0:00:09]} d5 {[%emt 0:00:
08]} 25. Nxe5 {[%emt 0:00:03]} Qe6 {[%emt 0:00:05]} 26. exd5 {[%emt 0:00:04]}
Qxd5 {[%emt 0:00:04]} 27. Nc6 {[%emt 0:00:08]} Nf6 {[%emt 0:00:00]} 28. Ne7+ {
[%emt 0:00:02]} Kh7 {[%emt 0:00:06]} 29. Nxd5 {[%emt 0:00:02]} Rad8 {[%emt 0:
00:16]} 30. Ne7 {[%emt 0:00:03] OnlyHungryKiwi won on time} 1-0

[Event "Fast Chess"]
[Site "ChessKid.com"]
[Date "2020.04.12"]
[Round "2"]
[White "Georgiev, Maximilian"]
[Black "Li, Tobias"]
[Result "0-1"]
[ECO "C78"]
[WhiteElo "1328"]
[BlackElo "1271"]
[PlyCount "116"]
[EventDate "2020.??.??"]
[TimeControl "180"]
[WhiteClock "0:00:35"]
[BlackClock "0:01:09"]

1. e4 {[%emt 0:00:00]} e5 {[%emt 0:00:01]} 2. Nf3 {[%emt 0:00:01]} Nc6 {
[%emt 0:00:01]} 3. Bb5 {[%emt 0:00:01]} Bc5 {[%emt 0:00:03]} 4. O-O {[%emt 0:
00:02]} a6 {[%emt 0:00:02]} 5. Ba4 {[%emt 0:00:01]} Nf6 {[%emt 0:00:01]} 6. h3
{[%emt 0:00:02]} O-O {[%emt 0:00:03]} 7. Nc3 {[%emt 0:00:03]} b5 {[%emt 0:00:
01]} 8. Bb3 {[%emt 0:00:01]} d6 {[%emt 0:00:01]} 9. d3 {[%emt 0:00:01]} Re8 {
[%emt 0:00:01]} 10. Bg5 {[%emt 0:00:02]} h6 {[%emt 0:00:02]} 11. Bh4 {[%emt 0:
00:01]} Be6 {[%emt 0:00:08]} 12. Nd5 {[%emt 0:00:03]} Bxd5 {[%emt 0:00:01]} 13.
Bxd5 {[%emt 0:00:02]} Nb4 {[%emt 0:00:09]} 14. c3 {[%emt 0:00:05]} Nbxd5 {
[%emt 0:00:02]} 15. exd5 {[%emt 0:00:01]} Qd7 {[%emt 0:00:05]} 16. Bxf6 {
[%emt 0:00:03]} gxf6 {[%emt 0:00:02]} 17. d4 {[%emt 0:00:02]} exd4 {[%emt 0:00:
02]} 18. cxd4 {[%emt 0:00:00]} Ba7 {[%emt 0:00:05]} 19. Qd3 {[%emt 0:00:06]}
Kf8 {[%emt 0:00:29]} 20. Rfe1 {[%emt 0:00:01]} Rxe1+ {[%emt 0:00:02]} 21. Rxe1
{[%emt 0:00:00]} Re8 {[%emt 0:00:02]} 22. Rxe8+ {[%emt 0:00:03]} Kxe8 {[%emt 0:
00:02]} 23. Qe4+ {[%emt 0:00:06]} Qe7 {[%emt 0:00:04]} 24. Qxe7+ {[%emt 0:00:
01]} Kxe7 {[%emt 0:00:01]} 25. b3 {[%emt 0:00:02]} c5 {[%emt 0:00:06]} 26. dxc5
{[%emt 0:00:02]} Bxc5 {[%emt 0:00:03]} 27. a4 {[%emt 0:00:03]} bxa4 {[%emt 0:
00:06]} 28. bxa4 {[%emt 0:00:01]} f5 {[%emt 0:00:04]} 29. Nh4 {[%emt 0:00:04]}
Kf6 {[%emt 0:00:01]} 30. g4 {[%emt 0:00:03]} fxg4 {[%emt 0:00:02]} 31. hxg4 {
[%emt 0:00:01]} Kg5 {[%emt 0:00:04]} 32. Nf3+ {[%emt 0:00:03]} Kxg4 {[%emt 0:
00:02]} 33. Nh2+ {[%emt 0:00:03]} Kf5 {[%emt 0:00:04]} 34. Kf1 {[%emt 0:00:03]}
Ke5 {[%emt 0:00:01]} 35. Ke2 {[%emt 0:00:01]} Kxd5 {[%emt 0:00:00]} 36. Kf3 {
[%emt 0:00:02]} Ke5 {[%emt 0:00:01]} 37. Kg3 {[%emt 0:00:03]} f5 {[%emt 0:00:
01]} 38. f4+ {[%emt 0:00:02]} Ke4 {[%emt 0:00:01]} 39. Nf3 {[%emt 0:00:03]} Be3
{[%emt 0:00:02]} 40. Ng1 {[%emt 0:00:05]} Bxg1 {[%emt 0:00:02]} 41. Kg2 {
[%emt 0:00:02]} Bb6 {[%emt 0:00:01]} 42. Kg3 {[%emt 0:00:01]} h5 {[%emt 0:00:
01]} 43. Kh4 {[%emt 0:00:01]} Kxf4 {[%emt 0:00:00]} 44. Kxh5 {[%emt 0:00:00]}
Ke3 {[%emt 0:00:01]} 45. Kg5 {[%emt 0:00:01]} f4 {[%emt 0:00:01]} 46. Kg4 {
[%emt 0:00:01]} f3 {[%emt 0:00:01]} 47. Kg3 {[%emt 0:00:00]} Ke2 {[%emt 0:00:
01]} 48. Kh2 {[%emt 0:00:02]} f2 {[%emt 0:00:00]} 49. Kg2 {[%emt 0:00:01]}
f1=Q+ {[%emt 0:00:00]} 50. Kg3 {[%emt 0:00:02]} Qf2+ {[%emt 0:00:01]} 51. Kg4 {
[%emt 0:00:02]} Qf3+ {[%emt 0:00:01]} 52. Kg5 {[%emt 0:00:02]} Be3+ {[%emt 0:
00:01]} 53. Kg6 {[%emt 0:00:02]} Qf4 {[%emt 0:00:01]} 54. Kg7 {[%emt 0:00:01]}
Qf5 {[%emt 0:00:00]} 55. Kg8 {[%emt 0:00:02]} Qf6 {[%emt 0:00:02]} 56. Kh7 {
[%emt 0:00:01]} Qg5 {[%emt 0:00:01]} 57. Kh8 {[%emt 0:00:02]} Bd4+ {[%emt 0:00:
02]} 58. Kh7 {[%emt 0:00:00]} Qg7# {[%emt 0:00:01] OnlyHungryKiwi won by
checkmate} 0-1

[Event "Fast Chess"]
[Site "ChessKid.com"]
[Date "2020.04.12"]
[Round "2"]
[White "Li, Patrick"]
[Black "Sasse, Gabriel"]
[Result "0-1"]
[ECO "C55"]
[WhiteElo "994"]
[BlackElo "1237"]
[PlyCount "104"]
[EventDate "2020.??.??"]
[TimeControl "180"]
[WhiteClock "0:00:15"]

1. e4 {[%emt 0:00:00]} e5 {[%emt 0:00:00]} 2. Nf3 {[%emt 0:00:00]} Nc6 {
[%emt 0:00:01]} 3. Nc3 {[%emt 0:00:04]} Nf6 {[%emt 0:00:01]} 4. Bc4 {[%emt 0:
00:02]} h6 {[%emt 0:00:00]} 5. O-O {[%emt 0:00:04]} Bc5 {[%emt 0:00:02]} 6. h3
{[%emt 0:00:05]} O-O {[%emt 0:00:02]} 7. Bb5 {[%emt 0:00:03]} Ne8 {[%emt 0:00:
02]} 8. Bxc6 {[%emt 0:00:03]} dxc6 {[%emt 0:00:00]} 9. Nxe5 {[%emt 0:00:05]}
Qf6 {[%emt 0:00:05]} 10. Ng4 {[%emt 0:00:04]} Qg6 {[%emt 0:00:03]} 11. Ne5 {
[%emt 0:00:04]} Qg5 {[%emt 0:00:04]} 12. d4 {[%emt 0:00:03]} Bd6 {[%emt 0:00:
05]} 13. Bxg5 {[%emt 0:00:01]} hxg5 {[%emt 0:00:03]} 14. Nf3 {[%emt 0:00:07]}
g4 {[%emt 0:00:05]} 15. hxg4 {[%emt 0:00:03]} Bxg4 {[%emt 0:00:01]} 16. Nd2 {
[%emt 0:00:10]} Bxd1 {[%emt 0:00:04]} 17. Rfxd1 {[%emt 0:00:01]} Nf6 {[%emt 0:
00:02]} 18. e5 {[%emt 0:00:03]} Bxe5 {[%emt 0:00:02]} 19. dxe5 {[%emt 0:00:04]}
Ng4 {[%emt 0:00:01]} 20. Re1 {[%emt 0:00:06]} f6 {[%emt 0:00:04]} 21. exf6 {
[%emt 0:00:03]} Rxf6 {[%emt 0:00:02]} 22. Re4 {[%emt 0:00:02]} Nxf2 {[%emt 0:
00:06]} 23. Rae1 {[%emt 0:00:06]} Nxe4 {[%emt 0:00:02]} 24. Rxe4 {[%emt 0:00:
03]} Rd8 {[%emt 0:00:03]} 25. Nc4 {[%emt 0:00:04]} Rdf8 {[%emt 0:00:09]} 26.
Rh4 {[%emt 0:00:03]} Rf1+ {[%emt 0:00:03]} 27. Kh2 {[%emt 0:00:03]} R1f2 {
[%emt 0:00:05]} 28. Ne5 {[%emt 0:00:03]} Rxc2 {[%emt 0:00:10]} 29. Nd7 {
[%emt 0:00:02]} Rd8 {[%emt 0:00:09]} 30. Nf6+ {[%emt 0:00:15]} Kf7 {[%emt 0:00:
03]} 31. Rg4 {[%emt 0:00:01]} Kxf6 {[%emt 0:00:02]} 32. Ne4+ {[%emt 0:00:03]}
Kf5 {[%emt 0:00:03]} 33. Nf2 {[%emt 0:00:10]} Rdd2 {[%emt 0:00:07]} 34. Rxg7 {
[%emt 0:00:07]} Rxf2 {[%emt 0:00:02]} 35. Rf7+ {[%emt 0:00:02]} Ke4 {[%emt 0:
00:01]} 36. Rxc7 {[%emt 0:00:04]} Rxg2+ {[%emt 0:00:03]} 37. Kh3 {[%emt 0:00:
04]} Rxb2 {[%emt 0:00:03]} 38. Rh7 {[%emt 0:00:06]} Rxa2 {[%emt 0:00:05]} 39.
Rh4+ {[%emt 0:00:00]} Kd5 {[%emt 0:00:12]} 40. Rh5+ {[%emt 0:00:02]} Ke6 {
[%emt 0:00:02]} 41. Rh6+ {[%emt 0:00:03]} Kf7 {[%emt 0:00:01]} 42. Rh7+ {
[%emt 0:00:02]} Kg6 {[%emt 0:00:01]} 43. Rh4 {[%emt 0:00:02]} Rh2+ {[%emt 0:00:
03]} 44. Kg3 {[%emt 0:00:03]} Rxh4 {[%emt 0:00:01]} 45. Kxh4 {[%emt 0:00:02]}
Rd2 {[%emt 0:00:02]} 46. Kh3 {[%emt 0:00:03]} b5 {[%emt 0:00:02]} 47. Kg3 {
[%emt 0:00:04]} a5 {[%emt 0:00:01]} 48. Kf3 {[%emt 0:00:05]} a4 {[%emt 0:00:03]
} 49. Ke3 {[%emt 0:00:00]} Rd8 {[%emt 0:00:08]} 50. Kf3 {[%emt 0:00:02]} a3 {
[%emt 0:00:01]} 51. Kg3 {[%emt 0:00:01]} a2 {[%emt 0:00:01]} 52. Kh3 {[%emt 0:
00:00]} a1=Q {[%emt 0:00:02] LimeFarActor won on time} 0-1

[Event "Fast Chess"]
[Site "ChessKid.com"]
[Date "2020.04.12"]
[Round "3"]
[White "Li, Tobias"]
[Black "Sasse, Gabriel"]
[Result "0-1"]
[ECO "C50"]
[WhiteElo "1263"]
[BlackElo "1246"]
[PlyCount "94"]
[EventDate "2020.??.??"]
[TimeControl "180"]
[WhiteClock "0:00:17"]
[BlackClock "0:00:03"]

1. e4 {[%emt 0:00:01]} e5 {[%emt 0:00:00]} 2. Nf3 {[%emt 0:00:01]} Nc6 {
[%emt 0:00:01]} 3. Nc3 {[%emt 0:00:01]} Nf6 {[%emt 0:00:01]} 4. Bc4 {[%emt 0:
00:01]} h6 {[%emt 0:00:01]} 5. O-O {[%emt 0:00:02]} Bc5 {[%emt 0:00:01]} 6. d3
{[%emt 0:00:02]} O-O {[%emt 0:00:02]} 7. h3 {[%emt 0:00:01]} d6 {[%emt 0:00:01]
} 8. Re1 {[%emt 0:00:06]} Ne8 {[%emt 0:00:01]} 9. Be3 {[%emt 0:00:01]} Bxe3 {
[%emt 0:00:03]} 10. Rxe3 {[%emt 0:00:01]} Qf6 {[%emt 0:00:01]} 11. Qe2 {
[%emt 0:00:05]} Qg6 {[%emt 0:00:03]} 12. b3 {[%emt 0:00:04]} Bxh3 {[%emt 0:00:
04]} 13. Nh4 {[%emt 0:00:01]} Qg5 {[%emt 0:00:07]} 14. Rxh3 {[%emt 0:00:02]}
Nd4 {[%emt 0:00:06]} 15. Qe3 {[%emt 0:00:09]} Qxe3 {[%emt 0:00:06]} 16. fxe3 {
[%emt 0:00:07]} Nxc2 {[%emt 0:00:03]} 17. Rc1 {[%emt 0:00:03]} Nb4 {[%emt 0:00:
02]} 18. a3 {[%emt 0:00:07]} Na6 {[%emt 0:00:02]} 19. Nf5 {[%emt 0:00:13]} Nf6
{[%emt 0:00:14]} 20. Rg3 {[%emt 0:00:03]} g6 {[%emt 0:00:07]} 21. Nxh6+ {
[%emt 0:00:07]} Kh7 {[%emt 0:00:04]} 22. Rh3 {[%emt 0:00:04]} Ne8 {[%emt 0:00:
09]} 23. Nxf7+ {[%emt 0:00:02]} Kg7 {[%emt 0:00:04]} 24. b4 {[%emt 0:00:14]}
Rxf7 {[%emt 0:00:01]} 25. Bxf7 {[%emt 0:00:02]} Kxf7 {[%emt 0:00:03]} 26. b5 {
[%emt 0:00:02]} Nb8 {[%emt 0:00:03]} 27. Rf3+ {[%emt 0:00:06]} Kg7 {[%emt 0:00:
03]} 28. Nd5 {[%emt 0:00:09]} c6 {[%emt 0:00:07]} 29. bxc6 {[%emt 0:00:03]}
Nxc6 {[%emt 0:00:04]} 30. Nb4 {[%emt 0:00:03]} Na5 {[%emt 0:00:01]} 31. Nd5 {
[%emt 0:00:05]} Nb3 {[%emt 0:00:02]} 32. Nc7 {[%emt 0:00:02]} Nxc7 {[%emt 0:00:
03]} 33. Rxc7+ {[%emt 0:00:02]} Kh6 {[%emt 0:00:07]} 34. Rxb7 {[%emt 0:00:02]}
Nd2 {[%emt 0:00:04]} 35. Rh3+ {[%emt 0:00:04]} Kg5 {[%emt 0:00:03]} 36. Rbh7 {
[%emt 0:00:03]} Rc8 {[%emt 0:00:10]} 37. Kf2 {[%emt 0:00:10]} Rc2 {[%emt 0:00:
04]} 38. Ke2 {[%emt 0:00:12]} Nxe4+ {[%emt 0:00:01]} 39. Kd1 {[%emt 0:00:02]}
Rxg2 {[%emt 0:00:03]} 40. dxe4 {[%emt 0:00:02]} Ra2 {[%emt 0:00:07]} 41. Kc1 {
[%emt 0:00:02]} Rxa3 {[%emt 0:00:02]} 42. Rg3+ {[%emt 0:00:01]} Kf6 {[%emt 0:
00:03]} 43. Rh6 {[%emt 0:00:03]} Kf7 {[%emt 0:00:05]} 44. Rhxg6 {[%emt 0:00:02]
} Ra1+ {[%emt 0:00:02]} 45. Kb2 {[%emt 0:00:02]} Re1 {[%emt 0:00:02]} 46. Rh3 {
[%emt 0:00:01]} Re2+ {[%emt 0:00:02]} 47. Kc3 {[%emt 0:00:03]} Re1 {[%emt 0:00:
01] LimeFarActor won on time} 0-1

[Event "Fast Chess"]
[Site "ChessKid.com"]
[Date "2020.04.12"]
[Round "3"]
[White "Li, Patrick"]
[Black "Georgiev, Maximilian"]
[Result "0-1"]
[ECO "C55"]
[WhiteElo "992"]
[BlackElo "1330"]
[PlyCount "48"]
[EventDate "2020.??.??"]
[TimeControl "180"]
[WhiteClock "0:01:25"]
[BlackClock "0:00:43"]

1. e4 {[%emt 0:00:00]} e5 {[%emt 0:00:01]} 2. Nf3 {[%emt 0:00:04]} Nc6 {
[%emt 0:00:01]} 3. Nc3 {[%emt 0:00:02]} Nf6 {[%emt 0:00:02]} 4. Bc4 {[%emt 0:
00:01]} h6 {[%emt 0:00:03]} 5. O-O {[%emt 0:00:04]} Nxe4 {[%emt 0:00:03]} 6.
Bxf7+ {[%emt 0:00:07]} Kxf7 {[%emt 0:00:03]} 7. Nxe4 {[%emt 0:00:01]} d5 {
[%emt 0:00:03]} 8. Ng3 {[%emt 0:00:04]} Be7 {[%emt 0:00:03]} 9. Qe1 {[%emt 0:
00:08]} Bd6 {[%emt 0:00:03]} 10. h3 {[%emt 0:00:12]} Rf8 {[%emt 0:00:03]} 11.
Nh4 {[%emt 0:00:08]} Qxh4 {[%emt 0:00:05]} 12. Nf5 {[%emt 0:00:06]} Bxf5 {
[%emt 0:00:06]} 13. g3 {[%emt 0:00:06]} Qxh3 {[%emt 0:00:03]} 14. a3 {[%emt 0:
00:08]} Be4 {[%emt 0:00:04]} 15. f3 {[%emt 0:00:05]} Bxc2 {[%emt 0:00:07]} 16.
d3 {[%emt 0:00:06]} Bxd3 {[%emt 0:00:03]} 17. Rf2 {[%emt 0:00:06]} Qxg3+ {
[%emt 0:00:05]} 18. Rg2 {[%emt 0:00:08]} Qxf3 {[%emt 0:00:05]} 19. Qd2 {
[%emt 0:00:15]} Qe4 {[%emt 0:00:09]} 20. Rf2+ {[%emt 0:00:03]} Kg8 {[%emt 0:00:
03]} 21. Rxf8+ {[%emt 0:00:04]} Rxf8 {[%emt 0:00:03]} 22. b3 {[%emt 0:00:09]}
Rf1+ {[%emt 0:00:04]} 23. Kh2 {[%emt 0:00:07]} Qh1+ {[%emt 0:00:09]} 24. Kg3 {
[%emt 0:00:04]} e4+ {[%emt 0:00:05] TallSnazzyBall won on time} 0-1